bitfinex/quotes_BTCUSD_20240815
["timestamp","ask_amount","ask_price","bid_price","bid_amount"]
[1723722478425,0.509475,58884.0,58883.0,0.0009064]
[1723722478631,0.509475,58884.0,58883.0,0.01698955]
[1723722478839,0.509475,58884.0,58883.0,0.0009064]
[1723722479042,0.509475,58884.0,58883.0,0.01698955]
[1723722479043,0.169825,58884.0,58883.0,0.01698955]
[1723722479243,0.169825,58884.0,58883.0,0.0009064]
[1723722479772,0.169825,58884.0,58883.0,0.01698955]
[1723722480390,0.509475,58884.0,58883.0,0.01698955]
[1723722480785,0.169825,58884.0,58883.0,0.01698955]
[1723722480999,0.169825,58884.0,58883.0,0.02198955]
[1723722481499,0.509475,58884.0,58883.0,0.02198955]
[1723722481961,0.170825,58884.0,58883.0,0.02598955]
[1723722482168,0.001,58884.0,58883.0,0.19581755]
[1723722482371,0.001,58884.0,58883.0,0.53547355]
[1723722482591,0.001,58884.0,58883.0,0.19581755]
[1723722482801,0.001,58884.0,58883.0,0.02598955]
[1723722483030,0.170825,58884.0,58883.0,0.02598955]
[1723722484390,0.510475,58884.0,58883.0,0.02598955]
[1723722485002,0.170825,58884.0,58883.0,0.02598955]
[1723722485627,0.510475,58884.0,58883.0,0.02598955]
[1723722485832,0.170825,58884.0,58883.0,0.02598955]
[1723722486010,0.510475,58884.0,58883.0,0.02598955]
[1723722486219,0.170825,58884.0,58883.0,0.02598955]
[1723722486456,0.001,58884.0,58883.0,0.02598955]
[1723722486681,0.170825,58884.0,58883.0,0.02598955]
[1723722486811,0.001,58884.0,58883.0,1.12768409]
[1723722487016,0.68202954,58884.0,58883.0,0.02598955]
[1723722487260,1.42953249,58884.0,58883.0,0.02598955]
[1723722487499,1.42953249,58884.0,58883.0,0.0099064]
[1723722487500,1.76918249,58884.0,58883.0,0.0099064]
[1723722487694,1.86918249,58884.0,58883.0,0.0099064]
[1723722488312,1.89218249,58884.0,58883.0,0.0049064]
[1723722488489,1.89118249,58884.0,58883.0,0.0009064]
[1723722488920,1.90518249,58884.0,58883.0,0.0009064]
[1723722489124,1.90894291,58884.0,58883.0,0.0009064]
[1723722489297,1.84073996,58884.0,58883.0,0.0009064]
[1723722489584,1.86173996,58884.0,58883.0,0.0019064]
[1723722490187,1.84073996,58884.0,58883.0,0.0009064]
[1723722490384,1.85073996,58884.0,58883.0,0.0019064]
[1723722490971,1.84073996,58884.0,58883.0,0.0009064]
[1723722491173,2.0122945,58884.0,58883.0,0.0019064]
[1723722491406,2.0222945,58884.0,58883.0,0.0019064]
[1723722491781,2.0362945,58884.0,58883.0,0.0019064]
[1723722492117,1.52508996,58884.0,58883.0,0.0019064]
[1723722492323,1.53908996,58884.0,58883.0,0.0019064]
[1723722492522,1.51508996,58884.0,58883.0,0.0009064]
[1723722492727,1.50108996,58884.0,58883.0,0.0009064]
[1723722492967,1.51108996,58884.0,58883.0,0.0019064]
[1723722493190,1.68786105,58884.0,58883.0,0.0019064]
[1723722493369,2.01751105,58884.0,58883.0,0.0009064]
[1723722493787,2.02751105,58884.0,58883.0,0.0019064]
[1723722494194,1.68786105,58884.0,58883.0,0.0019064]
[1723722494858,1.51108996,58884.0,58883.0,0.0019064]
[1723722495306,1.52508996,58884.0,58883.0,0.0019064]
[1723722495508,1.51108996,58884.0,58883.0,0.0019064]
[1723722495753,1.56178336,58884.0,58883.0,0.0019064]
[1723722495876,1.52408996,58884.0,58883.0,0.0019064]
[1723722496081,0.98988542,58884.0,58883.0,0.0019064]
[1723722496287,0.31058542,58884.0,58883.0,0.0788064]
[1723722496571,0.31058542,58884.0,58883.0,0.01810346]
[1723722496572,1.16143996,58884.0,58883.0,0.01810346]
[1723722496987,0.04076042,58884.0,58883.0,1.0815064]
[1723722497190,0.532475,58884.0,58883.0,1.09770346]
[1723722497394,1.38332954,58884.0,58883.0,1.01810346]
[1723722498092,1.04367954,58884.0,58883.0,1.01810346]
[1723722498297,1.03067954,58884.0,58883.0,1.01810346]
[1723722498495,1.05367954,58884.0,58883.0,1.01810346]
[1723722498700,1.04767954,58884.0,58883.0,1.01710346]
[1723722498902,0.536475,58884.0,58883.0,1.15420346]
[1723722499136,0.881125,58884.0,58883.0,1.15520346]
[1723722499308,0.550475,58884.0,58883.0,1.09410346]
[1723722499514,0.71302954,58884.0,58883.0,1.01710346]
[1723722499716,1.04367954,58884.0,58883.0,1.01710346]
[1723722499978,1.05067954,58884.0,58883.0,1.01710346]
[1723722500385,1.04767954,58884.0,58883.0,1.01710346]
[1723722500989,1.04357954,58884.0,58883.0,1.01710346]
[1723722501531,1.04557954,58884.0,58883.0,1.01710346]
[1723722502015,0.70192954,58884.0,58883.0,1.01710346]
[1723722502217,0.70492954,58884.0,58883.0,1.01710346]
[1723722502416,0.70292954,58884.0,58883.0,1.01710346]
[1723722502818,0.70592954,58884.0,58883.0,1.01710346]
[1723722503046,0.70292954,58884.0,58883.0,1.01710346]
[1723722503247,0.023,58884.0,58883.0,1.10010346]
[1723722503589,0.008,58884.0,58883.0,1.10010346]
[1723722504334,0.009,58884.0,58883.0,1.10010346]
[1723722504556,0.009,58884.0,58883.0,1.26993146]
[1723722505001,0.001,58884.0,58883.0,1.10010346]
[1723722505470,0.171825,58884.0,58883.0,1.10010346]
[1723722505702,0.532475,58884.0,58883.0,1.10010346]
[1723722505931,0.872125,58884.0,58883.0,1.10110346]
[1723722506438,0.532475,58884.0,58883.0,1.10110346]
[1723722506832,0.532475,58884.0,58883.0,1.01810346]
[1723722507069,0.873125,58884.0,58883.0,1.01810346]
[1723722507271,0.873125,58884.0,58883.0,0.01710346]
[1723722507404,1.00718223,58884.0,58883.0,0.01710346]
[1723722507608,1.00618223,58884.0,58883.0,0.01710346]
[1723722507838,1.05699308,58884.0,58883.0,0.01710346]
[1723722508035,0.872125,58884.0,58883.0,0.0009064]
[1723722508269,0.58328585,58884.0,58883.0,0.0009064]
[1723722508455,0.532475,58884.0,58883.0,0.0009064]
[1723722508658,0.532475,58884.0,58883.0,0.01690967]
[1723722508857,0.92293585,58884.0,58883.0,0.01690967]
[1723722509069,0.872125,58884.0,58883.0,0.0009064]
[1723722509209,0.873125,58884.0,58883.0,0.01690967]
[1723722509415,1.07220326,58884.0,58883.0,0.0009064]
[1723722509790,0.875125,58884.0,58883.0,0.0009064]
[1723722510186,0.875125,58884.0,58883.0,0.01690967]
[1723722510412,0.878125,58884.0,58883.0,0.01690967]
[1723722510760,0.95429644,58884.0,58883.0,0.01690967]
[1723722510962,0.878125,58884.0,58883.0,0.01690967]
[1723722511158,0.878125,58884.0,58883.0,0.0009064]
[1723722511159,1.1116856,58884.0,58883.0,0.0009064]
[1723722511807,1.28324014,58884.0,58883.0,0.0009064]
[1723722512437,1.12594248,58884.0,58883.0,0.0009064]
[1723722513051,1.28412285,58884.0,58883.0,0.0009064]
[1723722513451,1.18243732,58884.0,58883.0,0.0009064]
[1723722515097,1.28412285,58884.0,58883.0,0.0009064]
[1723722515527,1.18243732,58884.0,58883.0,0.0009064]
[1723722515733,1.28412285,58884.0,58883.0,0.0009064]
[1723722515937,1.45567739,58884.0,58883.0,0.0009064]
[1723722516147,1.69364186,58884.0,58883.0,0.0009064]
[1723722516342,1.84888574,58884.0,58883.0,0.0009064]
[1723722517329,2.18853574,58884.0,58883.0,0.0009064]
[1723722517768,2.97021404,58884.0,58883.0,0.0009064]
[1723722517976,2.67690092,58884.0,58883.0,0.0009064]
[1723722518396,3.01655092,58884.0,58883.0,1.00044602]
[1723722518717,2.67690092,58884.0,58883.0,1.01644883]
[1723722519094,2.84549526,58884.0,58883.0,1.01644883]
[1723722519311,2.67390092,58884.0,58883.0,1.01644883]
[1723722519500,2.84549526,58884.0,58883.0,1.01644883]
[1723722519749,2.20984638,58884.0,58883.0,1.01644883]
[1723722519943,1.87019638,58884.0,58883.0,1.01644883]
[1723722520142,1.84283685,58884.0,58883.0,1.01744883]
[1723722520388,1.5673312,58884.0,58883.0,1.01744883]
[1723722520562,1.63916526,58884.0,58883.0,1.01744883]
[1723722520798,1.6291831,58884.0,58883.0,1.01744883]
[1723722520971,1.50208732,58884.0,58883.0,1.01744883]
[1723722521276,1.6411831,58884.0,58883.0,1.01744883]
[1723722521493,1.6321831,58884.0,58883.0,1.01644883]
[1723722521663,1.51708732,58884.0,58883.0,1.01744883]
[1723722522077,1.54008732,58884.0,58883.0,1.01744883]
[1723722522254,1.20043732,58884.0,58883.0,1.01744883]
[1723722522883,1.20043732,58884.0,58883.0,1.08084883]
[1723722523600,1.19812643,58884.0,58883.0,1.08084883]
[1723722525486,1.29986355,58884.0,58883.0,1.08084883]
[1723722526446,0.27918401,58884.0,58883.0,1.08084883]
[1723722526617,0.12330588,58884.0,58883.0,1.08084883]
[1723722526794,0.047,58884.0,58883.0,1.08084883]
[1723722527245,0.60734326,58884.0,58883.0,1.08084883]
[1723722527650,0.63278088,58884.0,58883.0,1.08084883]
[1723722528081,0.63278161,58884.0,58883.0,1.08084883]
[1723722528283,0.556475,58884.0,58883.0,1.08084883]
[1723722528490,0.63278161,58884.0,58883.0,1.08084883]
[1723722528822,0.7921936,58884.0,58883.0,1.08084883]
[1723722529031,0.35080145,58884.0,58883.0,1.08084883]
[1723722529237,0.29313704,58884.0,58883.0,1.08084883]
[1723722529650,0.29313836,58884.0,58883.0,1.08084883]
[1723722529857,0.556475,58884.0,58883.0,1.08084883]
[1723722530269,1.30303929,58884.0,58883.0,1.08084883]
[1723722530480,1.20129714,58884.0,58883.0,1.08084883]
[1723722530672,1.20103728,58884.0,58883.0,1.08084883]
[1723722530888,1.54068728,58884.0,58883.0,1.08084883]
[1723722531059,1.20103728,58884.0,58883.0,1.08084883]
[1723722531272,0.68983274,58884.0,58883.0,1.08084883]
[1723722531469,0.556475,58884.0,58883.0,1.08084883]
[1723722531643,0.63279821,58884.0,58883.0,1.08084883]
[1723722531851,0.29314821,58884.0,58883.0,1.08084883]
[1723722532049,0.29314759,58884.0,58883.0,1.08084883]
[1723722532255,0.63280163,58884.0,58883.0,1.08084883]
[1723722532437,1.13291696,58884.0,58883.0,1.08084883]
[1723722532638,1.20270266,58884.0,58883.0,1.08084883]
[1723722532942,0.80435663,58884.0,58883.0,1.08084883]
[1723722533358,1.20257772,58884.0,58883.0,1.08084883]
[1723722533556,1.20200334,58884.0,58883.0,1.08084883]
[1723722533741,1.3037728,58884.0,58883.0,1.08084883]
[1723722533948,1.14483185,58884.0,58883.0,1.08084883]
[1723722534255,1.30378404,58884.0,58883.0,1.08084883]
[1723722534367,1.66887563,58884.0,58883.0,1.08084883]
[1723722534571,1.66887563,58884.0,58883.0,1.01744883]
[1723722534815,1.71380015,58884.0,58883.0,1.01744883]
[1723722535217,1.66887563,58884.0,58883.0,1.01744883]
[1723722535741,1.54166458,58884.0,58883.0,1.01744883]
[1723722535914,1.54166458,58884.0,58883.0,1.09394883]
[1723722536726,1.54029673,58884.0,58883.0,1.09394883]
[1723722537043,1.54029673,58884.0,58883.0,1.01744883]
[1723722537827,1.5580557,58884.0,58883.0,1.01744883]
[1723722538187,1.72961024,58884.0,58883.0,1.01744883]
[1723722540236,2.06926024,58884.0,58883.0,1.01744883]
[1723722540501,2.42589093,58884.0,58883.0,1.01744883]
[1723722540707,2.09237519,58884.0,58883.0,1.01744883]
[1723722540921,2.75871426,58884.0,58883.0,1.01744883]
[1723722543412,2.93048767,58884.0,58883.0,1.01744883]
[1723722544544,2.92660738,58884.0,58883.0,1.01744883]
[1723722546535,2.92660738,58884.0,58883.0,0.01744883]
[1723722546944,0.339662,58882.0,58881.0,0.0009053]
[1723722547148,0.339662,58882.0,58866.0,0.0776]
[1723722547149,0.509614,58868.0,58866.0,0.0776]
[1723722547355,1.95054414,58868.0,58866.0,0.0776]
[1723722547556,1.97598302,58868.0,58867.0,0.01876934]
[1723722547736,1.97598302,58868.0,58867.0,0.0009053]
[1723722548336,1.84878864,58868.0,58867.0,0.0009053]
[1723722548882,2.02034318,58868.0,58867.0,0.0009053]
[1723722549085,2.24753756,58868.0,58867.0,0.0009053]
[1723722549296,2.12034318,58868.0,58867.0,0.0009053]
[1723722549503,2.17565326,58868.0,58867.0,0.0009053]
[1723722549673,2.32828652,58868.0,58867.0,0.0009053]
[1723722549920,2.33928652,58868.0,58867.0,0.0009053]
[1723722550273,2.18665326,58868.0,58867.0,0.0009053]
[1723722550846,2.37346457,58868.0,58867.0,0.0009053]
[1723722551050,2.33917996,58868.0,58867.0,0.0009053]
[1723722551485,2.18165326,58868.0,58867.0,0.0009053]
[1723722551691,2.18183036,58868.0,58867.0,0.0009053]
[1723722552094,2.17583036,58868.0,58867.0,0.0009053]
[1723722552355,2.52613191,58868.0,58867.0,0.0009053]
[1723722552563,2.20038891,58868.0,58867.0,0.0009053]
[1723722552761,2.15907883,58868.0,58867.0,0.0009053]
[1723722553180,2.1532277,58868.0,58867.0,0.0009053]
[1723722553334,2.1392277,58868.0,58867.0,0.0009053]
[1723722553534,2.28021419,58868.0,58867.0,0.0839053]
[1723722553761,2.1532277,58868.0,58867.0,0.0839053]
[1723722554527,2.05145091,58868.0,58867.0,0.0839053]
[1723722554736,2.05145091,58868.0,58867.0,0.1487053]
[1723722554940,1.93175316,58868.0,58867.0,0.1487053]
[1723722555134,1.71170791,58868.0,58867.0,0.1487053]
[1723722555341,1.78788334,58868.0,58867.0,0.1487053]
[1723722556050,1.78788334,58868.0,58867.0,0.6487053]
[1723722556227,1.71170791,58868.0,58867.0,0.6487053]
[1723722556529,1.71170791,58868.0,58867.0,0.66667181]
[1723722556530,1.93178821,58868.0,58867.0,0.66667181]
[1723722558391,1.83020298,58868.0,58867.0,0.66667181]
[1723722558615,1.95718947,58868.0,58867.0,0.66667181]
[1723722559208,1.93175052,58868.0,58867.0,0.66667181]
[1723722561183,1.93175052,58868.0,58867.0,0.51887181]
[1723722561903,1.93174393,58868.0,58867.0,0.51887181]
[1723722563103,1.71170791,58868.0,58867.0,0.51887181]
[1723722564808,2.05145091,58868.0,58867.0,0.51887181]
[1723722566452,2.16957659,58868.0,58867.0,0.51887181]
[1723722566852,2.16940818,58868.0,58867.0,0.51887181]
[1723722567598,2.05145091,58868.0,58867.0,0.51887181]
[1723722567806,2.16936923,58868.0,58867.0,0.51887181]
[1723722568456,2.16936923,58868.0,58867.0,0.01887181]
[1723722568680,2.16936923,58868.0,58867.0,0.0009053]
[1723722570854,2.16951391,58868.0,58867.0,0.0009053]
[1723722571255,2.22483504,58868.0,58867.0,0.0009053]
[1723722571666,1.78784263,58868.0,58867.0,0.1397053]
[1723722572143,1.71170791,58868.0,58867.0,0.1397053]
[1723722573062,1.78784263,58868.0,58867.0,0.1397053]
[1723722573282,1.84316176,58868.0,58867.0,0.1397053]
[1723722574258,1.76702704,58868.0,58867.0,0.1397053]
[1723722575267,1.88661039,58868.0,58867.0,0.1397053]
[1723722575381,1.98811844,58868.0,58867.0,0.1397053]
[1723722576036,2.32786144,58868.0,58867.0,0.0009053]
[1723722576262,2.35323845,58868.0,58867.0,0.0009053]
[1723722576416,2.22635339,58868.0,58867.0,0.0109053]
[1723722576822,2.37861546,58868.0,58867.0,0.0109053]
[1723722577389,2.56523914,58868.0,58867.0,0.0109053]
[1723722577634,2.90498214,58868.0,58867.0,0.0109053]
[1723722577803,2.71835846,58868.0,58867.0,0.0109053]
[1723722578006,2.83425846,58868.0,58867.0,0.0109053]
[1723722578207,2.86864065,58868.0,58867.0,0.5109053]
[1723722578967,2.52889765,58868.0,58867.0,0.5109053]
[1723722579971,2.41299765,58868.0,58867.0,0.5109053]
[1723722581141,2.39899765,58868.0,58867.0,0.5109053]
[1723722581344,2.72474065,58868.0,58867.0,0.5109053]
[1723722582015,2.38499765,58868.0,58867.0,0.5109053]
[1723722582562,2.73874065,58868.0,58867.0,0.5109053]
[1723722582766,1.23831285,58868.0,58867.0,0.5924053]
[1723722583235,1.56405585,58868.0,58867.0,0.61189043]
[1723722583438,1.69122662,58868.0,58867.0,0.61189043]
[1723722583673,1.70522662,58868.0,58867.0,0.61189043]
[1723722583935,1.71922662,58868.0,58867.0,0.67229043]
[1723722584137,1.71579501,58868.0,58867.0,0.67229043]
[1723722584267,1.58862624,58868.0,58867.0,0.67229043]
[1723722584475,0.87879755,58868.0,58867.0,0.67229043]
[1723722585097,0.7745857,58868.0,58867.0,0.67229043]
[1723722585319,0.07949883,58868.0,58867.0,0.67229043]
[1723722585560,0.32571874,58868.0,58867.0,0.67229043]
[1723722585845,0.58911283,58868.0,58867.0,0.67229043]
[1723722586048,0.66546174,58868.0,58867.0,0.67229043]
[1723722586220,0.15584774,58868.0,58867.0,0.67229043]
[1723722586424,0.07949883,58868.0,58867.0,0.67229043]
[1723722586628,0.24936983,58868.0,58867.0,0.67229043]
[1723722586830,0.92885583,58868.0,58867.0,0.67229043]
[1723722588747,1.00520474,58868.0,58867.0,0.6528053]
[1723722589141,1.00520474,58868.0,58867.0,0.67338574]
[1723722589975,0.66546174,58868.0,58867.0,0.67338574]
[1723722590264,0.65490319,58868.0,58867.0,0.67338574]
[1723722590445,0.31516019,58868.0,58867.0,0.67338574]
[1723722590584,0.28970831,58868.0,58867.0,0.67338574]
[1723722590785,0.23881128,58868.0,58867.0,0.67338574]
[1723722590991,0.57855428,58868.0,58867.0,0.67338574]
[1723722592116,0.06894028,58868.0,58867.0,0.67338574]
[1723722592316,0.57855428,58868.0,58867.0,0.67338574]
[1723722592716,0.04594028,58868.0,58867.0,1.18300774]
[1723722594450,0.04594028,58868.0,58867.0,1.52275574]
[1723722594794,0.04594028,58868.0,58867.0,1.18300774]
[1723722595435,0.21581128,58868.0,58867.0,0.67338574]
[1723722595657,0.23881128,58868.0,58867.0,0.67338574]
[1723722598159,0.04594028,58868.0,58867.0,1.18300774]
[1723722601236,0.04594028,58868.0,58867.0,0.84325974]
[1723722602946,0.04594028,58868.0,58867.0,1.18300774]
[1723722603152,0.04594028,58868.0,58867.0,0.84325974]
[1723722605217,0.04594028,58868.0,58867.0,1.18300774]
[1723722605391,0.04594028,58868.0,58867.0,0.84325974]
[1723722608135,0.04594028,58868.0,58867.0,0.67338574]
[1723722608541,0.04594028,58868.0,58867.0,0.84325974]
[1723722608692,0.04594028,58868.0,58867.0,0.67338574]
[1723722609858,0.21581128,58868.0,58867.0,0.67338574]
[1723722610697,0.55555428,58868.0,58867.0,0.67338574]
[1723722610895,0.89529728,58868.0,58867.0,0.67338574]
[1723722611100,0.91829728,58868.0,58867.0,0.67338574]
[1723722611770,0.91829728,58868.0,58867.0,0.6528053]
[1723722612116,0.91829728,58868.0,58867.0,0.67336911]
[1723722612719,0.98280757,58868.0,58867.0,0.67336911]
[1723722612888,0.91829728,58868.0,58867.0,0.67336911]
[1723722613034,0.57855428,58868.0,58867.0,0.67336911]
[1723722613635,0.04594028,58868.0,58867.0,0.84324311]
[1723722613849,0.04594028,58868.0,58867.0,1.18299111]
[1723722614263,0.04594028,58868.0,58867.0,0.84324311]
[1723722614459,0.21581128,58868.0,58867.0,0.67336911]
[1723722614668,0.04594028,58868.0,58867.0,0.67336911]
[1723722615020,0.04594028,58868.0,58867.0,0.84324311]
[1723722617385,0.04594028,58868.0,58867.0,0.67336911]
[1723722617582,0.21581128,58868.0,58867.0,0.67336911]
[1723722621317,0.04594028,58868.0,58867.0,0.67336911]
[1723722621502,0.21581128,58868.0,58867.0,0.67336911]
[1723722621705,0.04594028,58868.0,58867.0,2.23898]
[1723722621948,0.1270979,58876.0,58867.0,2.23898]
[1723722621949,0.05166316,58881.0,58867.0,0.90460092]
[1723722622152,0.000824,58881.0,58880.0,0.991382]
[1723722622557,0.000824,58881.0,58880.0,1.01321597]
[1723722623395,0.000824,58881.0,58880.0,1.35288897]
[1723722623621,0.000824,58881.0,58880.0,1.01321597]
[1723722624058,0.009824,58881.0,58880.0,1.01321597]
[1723722624494,0.009824,58881.0,58880.0,1.35288897]
[1723722624695,0.014824,58881.0,58880.0,1.35288897]
[1723722624870,0.014824,58881.0,58880.0,1.01321597]
[1723722625495,0.005824,58881.0,58880.0,1.01321597]
[1723722625775,0.009824,58881.0,58880.0,1.01321597]
[1723722626614,0.000824,58888.0,58887.0,0.679266]
[1723722626833,0.000824,58888.0,58887.0,1.58824681]
[1723722626948,0.000824,58888.0,58887.0,1.95161099]
[1723722627147,0.000824,58888.0,58887.0,1.9415868]
[1723722627574,0.000824,58891.0,58890.0,1.670472]
[1723722627804,0.000824,58891.0,58890.0,1.84202654]
[1723722628017,0.1058335,58892.0,58890.0,1.84202654]
[1723722628018,0.1058335,58892.0,58891.0,0.849025]
[1723722628214,0.0124496,58899.0,58897.0,0.509362]
[1723722628362,0.10041575,58902.0,58901.0,1.620032]
[1723722628558,0.00824,58906.0,58905.0,0.848822]
[1723722628768,0.00824,58906.0,58905.0,1.67278]
[1723722628972,0.00824,58906.0,58905.0,1.68675801]
[1723722629618,0.00824,58906.0,58905.0,1.85831255]
[1723722630227,0.01124,58906.0,58905.0,1.85831255]
[1723722630495,0.01124,58906.0,58905.0,2.19784155]
[1723722630625,0.01124,58906.0,58905.0,1.85831255]
[1723722630802,0.11010101,58912.0,58911.0,1.188232]
[1723722631009,0.04350101,58912.0,58911.0,2.17917654]
[1723722631221,0.04350101,58912.0,58911.0,2.2418878]
[1723722631426,0.0019752,58919.0,58918.0,1.665943]
[1723722631645,0.0019752,58919.0,58918.0,1.71702104]
[1723722631856,0.0019752,58919.0,58918.0,1.73393922]
[1723722632276,0.0097627,58939.0,58926.0,2.00434448]
[1723722632481,0.04855151,58932.0,58931.0,0.879668]
[1723722632691,0.04855151,58932.0,58931.0,0.99458304]
[1723722632910,0.21823851,58932.0,58931.0,0.01713175]
[1723722633155,0.33938,58931.0,58926.0,0.0812]
[1723722633362,0.21823851,58932.0,58931.0,0.01713175]
[1723722633612,0.21823851,58932.0,58931.0,0.001]
[1723722633613,0.05555151,58932.0,58931.0,0.001]
[1723722633783,0.05555151,58932.0,58931.0,0.01813175]
[1723722633982,0.05555151,58932.0,58931.0,0.001]
[1723722633983,0.24823851,58932.0,58931.0,0.001]
[1723722634255,0.41092551,58932.0,58931.0,0.01710905]
[1723722634458,0.169691,58931.0,58928.0,0.169697]
[1723722634667,0.023,58930.0,58926.0,0.0812]
[1723722634874,0.871462,58930.0,58929.0,0.01711425]
[1723722635025,0.169733,58916.0,58911.0,0.0812]
[1723722635187,0.339455,58918.0,58913.0,0.169741]
[1723722635387,0.33946,58918.0,58912.0,0.01715861]
[1723722635603,0.169734,58916.0,58914.0,0.01715339]
[1723722635836,0.169728,58918.0,58915.0,0.169735]
[1723722636040,0.169733,58916.0,58915.0,0.01715078]
[1723722636194,0.509199,58916.0,58915.0,0.01715078]
[1723722636583,0.509199,58916.0,58911.0,0.0812]
[1723722636584,0.339479,58914.0,58911.0,0.0812]
[1723722636787,0.339501,58910.0,58905.0,0.0824]
[1723722636987,0.17155454,58916.0,58905.0,0.0824]
[1723722637188,0.169761,58906.0,58905.0,0.0824]
[1723722637338,0.17155454,58906.0,58898.0,0.0824]
[1723722637545,0.17155454,58905.0,58898.0,0.0824]
[1723722637745,0.19455454,58905.0,58892.0,0.0824]
[1723722637969,0.339571,58898.0,58892.0,0.0824]
[1723722638174,0.023,58897.0,58892.0,0.0824]
[1723722638528,0.192789,58897.0,58893.0,0.169798]
[1723722638755,0.023,58897.0,58893.0,0.339598]
[1723722638951,0.192785,58898.0,58894.0,0.169794]
[1723722639156,0.192785,58898.0,58892.0,0.0824]
[1723722639157,0.169788,58897.0,58892.0,0.0824]
[1723722639422,0.169787,58897.0,58894.0,0.169795]
[1723722639756,0.023,58898.0,58894.0,0.169795]
[1723722639955,0.002,58897.0,58895.0,0.169792]
[1723722640156,0.002,58897.0,58896.0,0.339581]
[1723722640362,0.169777,58901.0,58898.0,0.169784]
[1723722640566,0.023,58900.0,58898.0,0.169784]
[1723722640803,0.023,58900.0,58899.0,0.169782]
[1723722641003,0.169773,58902.0,58899.0,0.169782]
[1723722641200,0.023,58901.0,58898.0,0.339566]
[1723722641402,0.362537,58904.0,58898.0,0.339566]
[1723722641403,0.169771,58903.0,58899.0,0.16978]
[1723722641624,0.023,58902.0,58900.0,0.169779]
[1723722641877,0.004,58900.0,58894.0,0.5]
[1723722642196,0.848967,58895.0,58894.0,0.5]
[1723722642310,0.50938,58895.0,58894.0,0.5]
[1723722642515,0.169793,58895.0,58894.0,0.5]
[1723722643183,0.50938,58895.0,58894.0,0.5]
[1723722643444,1.44730384,58895.0,58894.0,0.5]
[1723722643647,1.53370384,58895.0,58894.0,0.503]
[1723722643853,1.97329084,58895.0,58894.0,0.503]
[1723722644065,1.65145921,58895.0,58894.0,0.52027722]
[1723722644276,1.56426391,58895.0,58894.0,0.503]
[1723722644488,1.56426391,58895.0,58894.0,0.52027722]
[1723722644913,1.90385091,58895.0,58894.0,0.52027722]
[1723722645330,1.91585091,58895.0,58894.0,0.51827722]
[1723722645546,2.42699245,58895.0,58894.0,0.51827722]
[1723722645768,2.42899245,58895.0,58894.0,0.51827722]
[1723722646178,2.42699245,58895.0,58894.0,0.501]
[1723722646387,2.44969245,58895.0,58894.0,0.501]
[1723722646589,2.81027945,58895.0,58894.0,0.44593242]
[1723722646814,2.81027945,58895.0,58894.0,0.31273242]
[1723722646815,2.82027945,58895.0,58894.0,0.31273242]
[1723722647009,0.849327,58870.0,58869.0,0.51466362]
[1723722647217,1.36061254,58870.0,58869.0,0.51466362]
[1723722647423,1.36061254,58870.0,58867.0,0.0109053]
[1723722647424,0.849357,58868.0,58867.0,0.0109053]
[1723722647658,1.04391154,58868.0,58867.0,0.0109053]
[1723722647865,1.38365454,58868.0,58867.0,0.0109053]
[1723722648266,1.04391154,58868.0,58867.0,0.0109053]
[1723722648939,0.885357,58868.0,58867.0,0.0109053]
[1723722649597,0.893357,58868.0,58867.0,0.0119053]
[1723722650200,0.545614,58868.0,58867.0,0.0109053]
[1723722650402,0.036,58868.0,58867.0,0.0119053]
[1723722650578,0.057,58868.0,58867.0,0.02930111]
[1723722650808,0.906357,58868.0,58867.0,0.0119053]
[1723722651040,0.879357,58868.0,58867.0,0.02930111]
[1723722651252,0.887357,58868.0,58867.0,0.0119053]
[1723722651455,0.887357,58868.0,58867.0,0.02930111]
[1723722651733,0.879357,58868.0,58867.0,0.0119053]
[1723722651941,0.879357,58868.0,58867.0,0.0109053]
[1723722652165,0.540614,58868.0,58867.0,0.0119053]
[1723722652368,0.031,58868.0,58867.0,0.0119053]
[1723722652572,0.207871,58868.0,58867.0,0.02930111]
[1723722652777,0.539614,58868.0,58867.0,0.0109053]
[1723722652979,0.199871,58868.0,58867.0,0.02830111]
[1723722653307,0.546614,58868.0,58867.0,0.0119053]
[1723722653541,0.546614,58868.0,58867.0,0.02930111]
[1723722653745,0.03,58868.0,58867.0,0.0109053]
[1723722653947,0.03,58868.0,58867.0,0.02830111]
[1723722654076,0.192871,58868.0,58867.0,0.02830111]
[1723722654283,0.880357,58868.0,58867.0,0.0109053]
[1723722654631,0.872357,58868.0,58867.0,0.0109053]
[1723722655005,1.41082911,58868.0,58867.0,0.0109053]
[1723722655184,1.41582911,58868.0,58867.0,0.0109053]
[1723722655393,1.39465454,58868.0,58867.0,0.0109053]
[1723722655592,1.38965454,58868.0,58867.0,0.0109053]
[1723722655802,1.38365454,58868.0,58867.0,0.0109053]
[1723722656024,1.83039754,58868.0,58867.0,0.0119053]
[1723722656428,1.83039754,58868.0,58867.0,0.0109053]
[1723722656625,1.99495208,58868.0,58867.0,0.0109053]
[1723722656825,1.99495208,58868.0,58867.0,0.0119053]
[1723722656826,2.00895208,58868.0,58867.0,0.0119053]
[1723722657228,1.66920908,58868.0,58867.0,0.0119053]
[1723722657429,1.67720908,58868.0,58867.0,0.0119053]
[1723722657630,1.56265454,58868.0,58867.0,0.0119053]
[1723722658036,1.57665454,58868.0,58867.0,0.0119053]
[1723722658738,1.56265454,58868.0,58867.0,0.0109053]
[1723722659166,1.51165454,58868.0,58867.0,0.0119053]
[1723722659407,1.52941762,58868.0,58867.0,0.0119053]
[1723722660458,1.56926331,58868.0,58867.0,0.0119053]
[1723722660677,1.88136331,58868.0,58867.0,0.0119053]
[1723722661082,2.22110631,58868.0,58867.0,0.0119053]
[1723722661906,1.88136331,58868.0,58867.0,0.0119053]
[1723722662110,1.59196331,58868.0,58867.0,0.0119053]
[1723722662320,0.65537708,58868.0,58867.0,0.0904053]
[1723722662536,0.21563408,58868.0,58867.0,0.0904053]
[1723722662746,0.89512008,58868.0,58867.0,0.10786005]
[1723722662956,0.89512008,58868.0,58867.0,0.0904053]
[1723722663354,0.88112008,58868.0,58867.0,0.0894053]
[1723722663612,0.88112008,58868.0,58867.0,0.10686005]
[1723722663819,0.88112008,58868.0,58867.0,0.10786005]
[1723722664021,0.89512008,58868.0,58867.0,0.10786005]
[1723722664224,0.91812008,58868.0,58867.0,0.10786005]
[1723722665480,0.57837708,58868.0,58867.0,0.10786005]
[1723722665767,0.04576308,58868.0,58867.0,0.61748205]
[1723722665979,0.04576308,58868.0,58867.0,0.10786005]
[1723722666175,0.89512008,58868.0,58867.0,0.10786005]
[1723722666825,0.12127509,58868.0,58867.0,0.10686005]
[1723722667029,0.20563408,58868.0,58867.0,0.10686005]
[1723722667431,0.21463408,58868.0,58867.0,0.10686005]
[1723722667634,0.01776308,58868.0,58867.0,0.61648205]